Cogmind - Beta 13 X1 @@@ ROGUE MODE // 2023.07.22 @ 23:08:54 Player: biogoob Result: Destroyed by G-34 Mercenary with Small Laser Performance ------------- Evolutions (0) 0 Regions Visited (2) 400 Robots Destroyed (15) 75 Value Destroyed (364) 364 Prototype IDs (4) 80 Alien Tech Used (0) 0 Bonus (0) 0 TOTAL SCORE: 919 Bonus ------- None Cogmind --------- Core Integrity 0/250 Matter 267/300 Energy 250/250 System Corruption 0% Temperature Cool (16) Movement Walking (190) Ox1 Location -10/Mines Parts ------- > --- POWER (1) -------- Ion Engine > --- PROPULSION (2) --- Aluminum Leg Aluminum Leg > --- UTILITY (2) ------ Large Storage Unit Weapon Shielding > --- WEAPON (2) ------- Assault Rifle Light Assault Rifle > --- INVENTORY (15) --- Light Ion Engine Light Treads Light Treads Aluminum Leg Aluminum Leg Aluminum Leg Compact Wheel Compact Wheel Heat Sink Medium Storage Unit Large Battery (200) Light Armor Plating Light Assault Rifle Grenade Launcher Peak State ------------ > --- POWER ------------ Light Ion Engine > --- PROPULSION ------- Aluminum Leg Aluminum Leg > --- UTILITY ---------- Medium Storage Unit Weapon Shielding > --- WEAPON ----------- Assault Rifle Light Assault Rifle > --- INVENTORY -------- Ion Engine Light Treads Light Treads Aluminum Leg Compact Wheel Compact Wheel Heat Sink Small Storage Unit Light Armor Plating Light Assault Rifle [Rating: 8] Favorites ----------- Power Ion Engine Engine Ion Engine Propulsion Aluminum Leg Leg Aluminum Leg Utility Weapon Shielding Storage Large Storage Unit Protection Weapon Shielding Weapon Assault Rifle Ballistic Gun Assault Rifle Build | -11 -10 -10 ------- Run | Jun Mat Min Slots Evolved . | . . . Power . | . . . Propulsion . | . . . Utility . | . . . Weapon . | . . . Parts Attached 10 | . 8 2 Power 1 | . 1 . Engine 1 | . 1 . Core . | . . . Reactor . | . . . Propulsion 6 | . 4 2 Treads . | . . . Leg 6 | . 4 2 Wheel . | . . . Hover . | . . . Flight . | . . . Utility 3 | . 3 . Device . | . . . Storage 2 | . 2 . Processor . | . . . Hackware . | . . . Protection 1 | . 1 . Artifact . | . . . Weapon . | . . . Energy Gun . | . . . Energy Cannon . | . . . Ballistic Gun . | . . . Ballistic Cannon . | . . . Launcher . | . . . Special Weapon . | . . . Impact Weapon . | . . . Slashing Weapon . | . . . Piercing Weapon . | . . . Special Melee Weapon . | . . . Unidentified Prototypes . | . . . Parts Lost . | . . . Power . | . . . Propulsion . | . . . Utility . | . . . Weapon . | . . . Highest Loss Streak . | . . . To Critical Strikes . | . . . Average Slot Usage (%) 99 | . 99 100 Engine 14 | . 14 14 Leg 28 | . 28 28 Storage 14 | . 14 14 Protection 13 | . 13 14 Ballistic Gun 28 | . 28 28 Naked Turns . | . . . Heaviest Build 29 | 11 29 29 Greatest Support 20 | 20 20 20 Greatest Overweight (x) 1 | . 1 1 Average Overweight (x) . | . . 1 Largest Inventory Capacity 15 | 8 15 15 Average Capacity 12 | 8 11 15 Most Carried 14 | 6 11 14 Average Carried 10 | 6 9 12 Final Capacity 15 | 8 15 15 Final Carried 14 | 6 11 14 Class Distribution -------------------- 100% | Mutant Dominant Class ---------------- Mutant | -10/Materials Mutant | -10/Mines Resources | -11 -10 -10 ----------- Run | Jun Mat Min Matter Collected 515 | 212 232 71 Remotely . | . . . Salvage Created 520 | 99 340 81 Parts 27 | 2 20 5 Haulers Intercepted . | . . . Recyclers Shooed . | . . . Parts Field Recycled . | . . . Retrieved Matter . | . . . Parts Self-Destructed . | . . . Prevented . | . . . Kills | -11 -10 -10 ------- Run | Jun Mat Min Combat Hostiles Destroyed 14 | . 12 2 Guns 14 | . 12 2 Classes Destroyed 3 | 1 2 . Recycler 1 | 1 . . Swarmer 6 | . 6 . Grunt 8 | . 6 2 Best Kill Streak 5 | 1 5 1 Combat Bots Only 5 | . 5 1 Max Kills in Single Turn 2 | 1 2 1 Gunslinging 1 | . 1 . Exploded . | . . . Melee . | . . . Uniques/NPCs Destroyed . | . . . Combat | -11 -10 -10 -------- Run | Jun Mat Min Damage Taken 915 | . 515 400 Core 257 | . 137 120 Absorbed by Shields . | . . . Redirected to Shielding 45 | . 16 29 Core Remaining (%) 100 | 100 . . Volleys Fired 62 | 3 40 19 Largest 2 | 2 2 2 Hottest 40 | 40 40 40 Shots Fired 124 | 6 80 38 Gun 124 | 6 80 38 Cannon . | . . . Launcher . | . . . Special . | . . . Kinetic 124 | 6 80 38 Thermal . | . . . Explosive . | . . . Electromagnetic . | . . . Robot Hit Streak 18 | 3 18 6 Robot Miss Streak 6 | 2 6 3 Penetration Max . | . . . Secondary Targets 4 | . 3 1 Max Gunslinging Chain 1 | . 1 1 Shots Hit Robots 73 | 3 47 23 Core Hits 29 | 2 20 7 Critical Kills . | . . . Critical Parts Destroyed . | . . . Critical Strikes . | . . . Melee Attacks . | . . . Impact . | . . . Slashing . | . . . Piercing . | . . . Sneak Attacks . | . . . Combat Hostiles . | . . . Follow-up Attacks . | . . . Damage Inflicted 820 | 37 527 256 Guns 820 | 37 527 256 Cannons . | . . . Explosions . | . . . Melee . | . . . Ramming . | . . . Kinetic 820 | 37 527 256 Thermal . | . . . Explosive . | . . . Electromagnetic . | . . . Impact . | . . . Slashing . | . . . Piercing . | . . . Highest Corruption . | . . . Average Corruption . | . . . Corruption Purged . | . . . Corruption Blocked . | . . . Overload Shots . | . . . Overflow Damage . | . . . Projectiles . | . . . Explosions . | . . . Melee . | . . . Knockbacks . | . . . Impact . | . . . Kinetic . | . . . Secondary . | . . . Self-Inflicted Damage . | . . . Shots . | . . . Rammed . | . . . Targets Rammed . | . . . Kicked . | . . . Crushed . | . . . Highest Temperature 31 | . 24 31 Average Temperature 10 | . 8 12 Received Heat Transfer 405 | . 162 243 Siege Activations . | . . . Robots Corrupted . | . . . Combat Hostiles . | . . . Parts Fried . | . . . Impact Corruptions . | . . . Robots Melted . | . . . Combat Hostiles . | . . . Parts Melted . | . . . Heat Transferred . | . . . Parts Sabotaged . | . . . Parts Stolen . | . . . Parts Stripped . | . . . Power Chain Reactions . | . . . Missiles Intercepted . | . . . Alert | -11 -10 -10 ------- Run | Jun Mat Min Peak Influence 337 | 5 337 55 Initial 5 | . 3 5 Average 114 | 2 151 49 Maximum Alert Level 1 | . 1 . Low Security (%) 92 | 100 88 100 Level 1 7 | . 11 . Level 2 . | . . . Level 3 . | . . . Level 4 . | . . . Level 5 . | . . . High Security . | . . . Max Security . | . . . Squads Dispatched 2 | . 2 . Investigation . | . . . Extermination . | . . . Reinforcement 2 | . 2 . Assault . | . . . Garrison . | . . . Intercept . | . . . Searches Triggered . | . . . Construction Impeded . | . . . Haulers Reinforced . | . . . Active Scanning Responses . | . . . Cargo Convoy Interrupts . | . . . Stealth | -11 -10 -10 --------- Run | Jun Mat Min Distress Signals 2 | . 2 . Communications Jammed . | . . . Distress Signals . | . . . Times Spotted 26 | . 22 4 Peak Tracking Total 6 | . 6 2 Tactical Retreats . | . . . Traps | -11 -10 -10 ------- Run | Jun Mat Min Traps Triggered . | . . . Indirectly . | . . . Trap Hack Attempts . | . . . Triggered . | . . . Disarmed . | . . . Reprogrammed . | . . . Reused . | . . . Traps Extracted . | . . . Installed . | . . . Triggered . | . . . Machines | -11 -10 -10 ---------- Run | Jun Mat Min Machines Disabled . | . . . Max in Single Turn . | . . . Machines Repaired . | . . . Machines Sabotaged . | . . . Overloaded Fab Kills . | . . . Hacking | -11 -10 -10 --------- Run | Jun Mat Min Machines Accessed 7 | . 7 . Terminals 7 | . 7 . Fabricators . | . . . Repair Stations . | . . . Recycling Units . | . . . Scanalyzers . | . . . Garrison Access . | . . . Total Hacks 24 | . 24 . Successful 13 | . 13 . Failed 11 | . 11 . Catastrophic . | . . . Database Lockouts . | . . . Manual 9 | . 9 . Terminals 24 | . 24 . Fabricators . | . . . Repair Stations . | . . . Recycling Units . | . . . Scanalyzers . | . . . Garrison Access . | . . . Terminal Hacks 11 | . 11 . Record 1 | . 1 . Robot Analysis 2 | . 2 . Prototype ID Bank 2 | . 2 . Branch Access Points 1 | . 1 . Alert Level 1 | . 1 . Locate Traps 3 | . 3 . Zone Layout 1 | . 1 . Fabricator Hacks . | . . . Repair Station Hacks . | . . . Recycling Unit Hacks . | . . . Scanalyzer . | . . . Garrison Access Hacks . | . . . Unauthorized Hacks 2 | . 2 . Terminals 2 | . 2 . Track 1 | . 1 . Botnet 1 | . 1 . Fabricators . | . . . Repair Stations . | . . . Recycling Units . | . . . Scanalyzers . | . . . Garrison Access . | . . . Data Cores Recovered . | . . . Used . | . . . Hacking Detections 7 | . 7 . Full Trace Events . | . . . Feedback Events . | . . . Feedback Blocked . | . . . Robot Schematics Acquired . | . . . Robots Built . | . . . Authchips . | . . . Time . | . . . Total Robot Build Rating . | . . . Part Schematics Acquired . | . . . Parts Built . | . . . Authchips . | . . . Time . | . . . Total Part Build Rating . | . . . Parts Repaired . | . . . Time . | . . . Parts Recycled . | . . . Recycled Matter . | . . . Retrieved Matter . | . . . Retrieved Components . | . . . Parts Scanalyzed . | . . . Part Schematics Acquired . | . . . Parts Damaged . | . . . Bothacking | -11 -10 -10 ------------ Run | Jun Mat Min Used RIF Installer . | . . . Robots Hacked . | . . . Non-combat . | . . . Combat . | . . . Robot Hacks Applied . | . . . Relay Couplers Released . | . . . Fabnet Peak Effective % . | . . . Robots Rewired . | . . . Allies Hacked . | . . . Hacks Repelled . | . . . Allies | -11 -10 -10 -------- Run | Jun Mat Min Total Allies . | . . . Largest Group . | . . . Highest-Rated Group . | . . . Highest-Rated Ally . | . . . Total Orders . | . . . Ally Attacks . | . . . Total Damage . | . . . Kills . | . . . Allies Corrupted . | . . . Allies Melted . | . . . Intel | -11 -10 -10 ------- Run | Jun Mat Min Robot Analysis Total 2 | . 2 . Derelict Logs Recovered 1 | . . 1 Drone Launches . | . . . Drone Recoveries . | . . . Exploration | -11 -10 -10 ------------- Run | Jun Mat Min Turns Passed 1245 | 14 803 428 Spaces Moved 676 | 5 476 195 Core . | . . . Treads . | . . . Legs 676 | 5 476 195 Wheels . | . . . Hover . | . . . Flight . | . . . Fastest Speed 120 | 120 120 190 Average Speed 154 | 120 140 190 Slowest Speed 190 | 120 190 190 Overloaded Moves . | . . . Propulsion Burnouts . | . . . Robots Hopped . | . . . Cave-ins Triggered . | . . . Exploration Rate (%) 46 | 2 80 56 Regions Visited 2 Branch Regions 1 Pre-discovered Areas . | . . . Known Exits Taken 1 | . 1 . Unknown Exits Taken 1 | 1 . . Scrap Searched 2 | . . 2 Spaces Dug . | . . . Terrain Destroyed . | . . . Melee . | . . . Projectile . | . . . AOE . | . . . Terrain Rammed . | . . . Walls Destroyed . | . . . Machines Disabled . | . . . Actions | -11 -10 -10 --------- Run | Jun Mat Min Total 766 | 7 542 217 Wait 10 | . 10 . Move 674 | 4 475 195 Hop . | . . . Pick Up 5 | . 4 1 Fast Attach 1 | . 1 . Attach . | . . . Detach . | . . . Swap 9 | . 7 2 Drop 5 | . 5 . Fire 62 | 3 40 19 Melee . | . . . Ram . | . . . Kick . | . . . Crush . | . . . Escape Stasis . | . . . Rewire . | . . . Trap . | . . . Miscellaneous . | . . . Route ------- -11/Junkyard -10/Materials (discovered 5 exits: [*Mat x3] / *Min x2) -10/Mines History --------- Turn | Location | Event 10 | -11/Junkyard | Discovered new exit (range 3) 15 | -11/Junkyard | Entered Materials 153 | -10/Materials | Discovered new exit (range 4) 217 | -10/Materials | Discovered new exit (range 18) 250 | -10/Materials | Discovered new exit (range 11) 303 | -10/Materials | Build established: Mutant 392 | -10/Materials | Core integrity fell below 50% 471 | -10/Materials | Discovered new exit (range 4) 493 | -10/Materials | Identified exit to Mines 818 | -10/Materials | Entered Mines 1122 | -10/Mines | Learned Materials security intel 1227 | -10/Mines | Core integrity fell below 20% 1246 | -10/Mines | Destroyed by G-34 Mercenary with Small Laser Last Messages --------------- 00853_ R-06 Scavenger collects Sml. Laser. 00855_ Acquired 36 matter. 00856_ R-06 Scavenger collects Aluminum Leg. 00861_ R-06 Scavenger collects Lgt. Nuclear Core. 00865_ R-06 Scavenger collects Imp. Heat Sink. 01122_ Acquired derelict log, extracted data. Data stored: Materials security intel. 01134_ Searching scrap... 01134_ Found Aluminum Leg. 01134_ Found Grenade Launcher. 01134_ Found Lrg. Storage Unit. 01134_ Found Signal Interpreter. 01134_ Found 20 Matter. 01135_ Acquired 20 matter. 01149_ Acquired Grenade Launcher. 01212_ Searching scrap... 01212_ Found Lrg. Matter Pod. 01212_ Found 15 Matter. 01213_ Acquired 15 matter. 01226_ Critical hit (Burn: +37). Map ----- +----------------------------------------------------+ | #### ##????????????????????? | | ### ### #????????????????????? | | #?????## #????????????????????? | | #######??????## #????????????????????? | | #?????????????## #????????????????????? | | ##?????????????# ##????????????????????? | | #######???????# ###?????????????###?????? | | ## ??????# #???????????#### ##????? | | #?????????# ########???## ##? #? | | ### #?????????# #???? # ??? | | #### #?????????# #???? ???# | | #### #?????????######## #????? ???? | | #### ##???????????????# #?????# #???? | | ##??????????????# ####### #???? | | % #??????????????# ! ! #??? | | ###### #?????????????######### ##?# | | #????## #?????????????????????# ## | | # #?????# #?????????????????????## | | ## #?????# ##########????????????## | | ?# #?????? #?????####?### " | | ?# #??????# ! #????## ### ## " | | ?# #???????#######??# #???## g ##?? " | | ?# ???????????###### ##### g ##???? | | ?####???????????# ## ######??????? | | ????????????????# #### # #####???????????? | | ?????????????####????# @ ##???????????????? | | ????????????## #### ## ##????????????????? | | ????????????# ### #?????????????????? | | ????????????# #?## #?????????????????? | | ???????????# """" #??# #?????????????????? | | ???????????# """" #??## ##?????????????????? | | ???????????# """" #???###??????????????????? | | ??????????# #????????????????????????? | | ?????????# ### ##????????????????????????? | | ??????????? ## ??####?????????????????????????? | | ?????????????##? ????????????????????????????????? | | ?????????????????????????????????????????????????? | | ?????????????????????????????????????????????????? | | ?????????????????????????????????????????????????? | | ?????????????????????????????????????????????????? | | ?????????????????????????????????????????????????? | | ?????????????????????????????????????????????????? | | ?????????????????????????????????????????????????? | | ?????????????????????????????????????????????????? | | | | | | | | | | | | | +----------------------------------------------------+ Best States ------------- Heat Dissipation 25 Energy Generation 10 Energy Capacity 250 Matter Stores 300 Matter Capacity 300 Sight Range 16 Terrain Scan Density 10 Weapon Shielding 33 Evasion (%) 55 Item Schematics ----------------- None Robot Schematics ------------------ None Fabricated ------------ Nothing Alien Tech Used ----------------- None Achievements -------------- None Challenges ------------ None Game ------ Seed SwordLaserGuard Manual? 0 Play Time 00:08:36 Cumulative 157.0 hours Start 2023.07.22 @ 22:53:29 End 2023.07.22 @ 23:08:54 Sessions 3 Manual Loads 0 Difficulty Rogue Special Mode None Game No. 175 Rogue 152 Adventurer 19 Explorer 4 Win Type - Total 4 Types 3/0/1/0/0/0/0/0/0 Lore% 53 Gallery% 61 Achievement% 50 Wizard Run 0 Options --------- ASCII 1 Keyboard 1 Movement Vi Keybinds 0 Fullscreen 2 Font 18/SmallcapsGlow Map View 76x50 Tactical HUD 1 Map Filters SATURATION(72) Filters SATURATION(72) Steam 1 RUN: 626c6730-1894-40e3-ab53-b2293438f918